[Event "Sunway Sitges Chess Festival"]
[Date "2024.12.21"]
[White "Huseynova, Lala"]
[Black "Diaz Rosas, Julio Cesar"]
[WhiteElo "2021"]
[BlackElo "2401"]
[Round "1.25"]
[Result "0-1"]
[TimeControl "40/5400+30:1800+30"]

1. e4 c6 {[%clk 1:30:36]} 2. Nf3 {[%clk 1:31:12]} 2... d5 {[%clk 1:30:59]} 3.
Nc3 {[%clk 1:31:37]} 3... dxe4 {[%clk 1:31:17]} 4. Nxe4 {[%clk 1:31:58]} 4...
Nf6 {[%clk 1:31:39]} 5. Qe2 {[%clk 1:31:39]} 5... Na6 {[%clk 1:31:50]} 6. b3
{[%clk 1:17:38]} 6... Nb4 {[%clk 1:24:30]} 7. Nxf6+ {[%clk 1:12:12]} 7... gxf6
{[%clk 1:24:54]} 8. Qe4 {[%clk 1:11:08]} 8... e6 {[%clk 1:07:57]} 9. Bb2 {[%clk
1:09:14]} 9... f5 {[%clk 1:05:50]} 10. Qc4 {[%clk 1:02:02]} 10... Rg8 {[%clk
1:05:06]} 11. a3 {[%clk 0:47:11]} 11... Rg4 {[%clk 0:59:03]} 12. d4 {[%clk
0:44:39]} 12... Re4+ {[%clk 0:49:08]} 13. Kd1 {[%clk 0:39:27]} 13... Nd5 {[%clk
0:42:49]} 14. h3 {[%clk 0:39:17]} 14... Bd7 {[%clk 0:37:30]} 15. b4 {[%clk
0:37:18]} 15... c5 {[%clk 0:26:37]} 16. bxc5 {[%clk 0:32:21]} 16... Qa5 {[%clk
0:26:38]} 17. Bd3 {[%clk 0:28:33]} 17... Bh6 {[%clk 0:26:59]} 18. c6 {[%clk
0:18:00]} 18... Bxc6 {[%clk 0:26:19]} 19. Qc5 {[%clk 0:18:11]} 19... Qxc5 {[%clk
0:24:06]} 20. dxc5 {[%clk 0:18:27]} 20... Ra4 {[%clk 0:23:57]} 21. Ne5 {[%clk
0:11:13]} 21... Rd8 {[%clk 0:20:12]} 22. Re1 Nf4 {[%clk 0:20:49]} 23. g3 0-1

[Variant "Standard"]
[Site "Europe Echecs"]

[Event "Sunway Sitges Chess Festival"]
[Date "2024.12.21"]
[White "Degraeve, Remy"]
[Black "Goh, Jinghan Cameron"]
[WhiteElo "2400"]
[BlackElo "2021"]
[Round "1.26"]
[Result "0-1"]
[TimeControl "40/5400+30:1800+30"]

1. d4 Nf6 2. c4 e6 3. Nc3 Bb4 4. e3 O-O 5. a3 Bxc3+ 6. bxc3 Nc6 7. Bd3 e5 8. f3
d6 9. Ne2 Nh5 10. O-O f5 11. a4 Na5 12. Ba3 c5 0-1

[Variant "Standard"]
[Site "Europe Echecs"]

[Event "Sunway Sitges Chess Festival"]
[Date "2024.12.21"]
[White "Garmendia Vega, Gabriel"]
[Black "Aloma Vidal, Robert"]
[WhiteElo "2017"]
[BlackElo "2398"]
[Round "1.27"]
[Result "0-1"]
[TimeControl "40/5400+30:1800+30"]

1. e4 {[%clk 1:30:48]} 1... c5 {[%clk 1:30:45]} 2. Nf3 {[%clk 1:31:13]} 2... e6
{[%clk 1:31:10]} 3. d4 {[%clk 1:31:40]} 3... cxd4 {[%clk 1:31:32]} 4. Nxd4
{[%clk 1:32:05]} 4... a6 {[%clk 1:31:55]} 5. c4 {[%clk 1:32:20]} 5... Nf6 {[%clk
1:32:04]} 6. Nc3 {[%clk 1:32:46]} 6... Bb4 {[%clk 1:32:28]} 7. Qd3 {[%clk
1:31:26]} 7... d6 {[%clk 1:32:49]} 8. f3 {[%clk 1:29:12]} 8... Nbd7 {[%clk
1:24:48]} 9. Bd2 {[%clk 1:28:07]} 9... O-O {[%clk 1:23:17]} 10. Be2 {[%clk
1:27:25]} 10... d5 {[%clk 1:18:26]} 11. cxd5 {[%clk 1:25:50]} 11... exd5 {[%clk
1:15:25]} 12. O-O-O {[%clk 1:03:49]} 12... dxe4 {[%clk 0:45:32]} 13. Nxe4 {[%clk
0:53:46]} 13... Ne5 {[%clk 0:44:18]} 14. Nxf6+ {[%clk 0:52:56]} 14... Qxf6
{[%clk 0:44:02]} 15. Qe4 {[%clk 0:52:01]} 15... Bxd2+ {[%clk 0:41:58]} 16. Rxd2
{[%clk 0:52:09]} 16... Bd7 {[%clk 0:36:35]} 17. f4 {[%clk 0:44:55]} 17... Nc6
{[%clk 0:34:30]} 18. Bd3 {[%clk 0:36:53]} 18... g6 {[%clk 0:34:07]} 19. Nxc6
{[%clk 0:36:46]} 19... Bxc6 {[%clk 0:33:34]} 20. Qe5 {[%clk 0:36:42]} 20... Qxe5
{[%clk 0:31:10]} 21. fxe5 {[%clk 0:37:10]} 21... Rfd8 {[%clk 0:24:27]} 22. Rhd1
{[%clk 0:10:36]} 22... Rd5 {[%clk 0:22:25]} 23. Be4 {[%clk 0:04:45]} 23... Rxd2
{[%clk 0:22:23]} 0-1

[Variant "Standard"]
[Site "Europe Echecs"]

[Event "Sunway Sitges Chess Festival"]
[Date "2024.12.21"]
[White "Herzwurm, Robert"]
[Black "Hess, Max"]
[WhiteElo "2016"]
[BlackElo "2385"]
[Round "1.29"]
[Result "0-1"]
[TimeControl "40/5400+30:1800+30"]

1. e4 {[%clk 1:30:58]} 1... c5 {[%clk 1:30:55]} 2. Nc3 {[%clk 1:31:21]} 2... Nc6
{[%clk 1:31:08]} 3. f4 {[%clk 1:30:58]} 3... e6 {[%clk 1:30:57]} 4. Nf3 {[%clk
1:30:31]} 4... Nh6 {[%clk 1:30:53]} 5. Bb5 {[%clk 1:24:20]} 5... Nd4 {[%clk
1:30:59]} 6. d3 {[%clk 1:19:25]} 6... Nxb5 {[%clk 1:27:39]} 7. Nxb5 {[%clk
1:17:40]} 7... d5 {[%clk 1:27:35]} 8. O-O {[%clk 1:13:23]} 8... Be7 {[%clk
1:24:58]} 9. Ne5 {[%clk 1:02:17]} 9... a6 {[%clk 1:18:15]} 10. Nc3 {[%clk
1:00:28]} 10... O-O {[%clk 1:18:28]} 11. f5 {[%clk 0:49:29]} 11... d4 {[%clk
1:13:19]} 12. Bxh6 {[%clk 0:33:33]} 12... dxc3 {[%clk 1:08:56]} 13. f6 {[%clk
0:20:55]} 13... Bxf6 {[%clk 1:06:44]} 14. Ng4 {[%clk 0:17:33]} 14... Bd4+ {[%clk
1:05:36]} 15. Kh1 {[%clk 0:13:24]} 15... f5 {[%clk 1:04:39]} 0-1

[Variant "Standard"]
[Site "Europe Echecs"]

[Event "Sunway Sitges Chess Festival"]
[Date "2024.12.21"]
[White "Anwesh, Upadhyaya"]
[Black "Dolas, Aarush"]
[WhiteElo "2379"]
[BlackElo "2014"]
[Round "1.30"]
[Result "1-0"]
[TimeControl "40/5400+30:1800+30"]

1. Nf3 {[%clk 1:29:34]} 1... d5 {[%clk 1:30:36]} 2. c4 {[%clk 1:29:33]} 2... c6
{[%clk 1:30:13]} 3. e3 {[%clk 1:29:43]} 3... Nf6 {[%clk 1:30:26]} 4. Nc3 {[%clk
1:30:08]} 4... Bf5 {[%clk 1:30:41]} 5. cxd5 {[%clk 1:27:38]} 5... Nxd5 {[%clk
1:29:48]} 6. Qb3 {[%clk 1:25:55]} 6... Qb6 {[%clk 1:18:06]} 7. Qxb6 {[%clk
1:16:19]} 7... Nxb6 {[%clk 1:25:33]} 8. e4 {[%clk 1:09:22]} 8... Bg4 {[%clk
1:19:15]} 9. Ne5 {[%clk 1:07:26]} 9... Be6 {[%clk 1:16:59]} 10. d4 {[%clk
1:15:16]} 10... f6 {[%clk 1:16:58]} 11. Nd3 {[%clk 1:12:05]} 11... Bf7 {[%clk
1:08:33]} 12. f4 {[%clk 1:09:33]} 12... N8d7 {[%clk 1:07:19]} 13. Be2 {[%clk
1:06:23]} 13... O-O-O {[%clk 1:04:06]} 14. O-O {[%clk 1:03:22]} 14... g6 {[%clk
0:46:46]} 15. b3 {[%clk 1:02:16]} 15... Bg7 {[%clk 0:45:53]} 16. Be3 {[%clk
1:01:19]} 16... Rhe8 {[%clk 0:33:59]} 17. Rad1 {[%clk 0:55:47]} 17... Bg8 {[%clk
0:33:21]} 18. Bg4 {[%clk 0:48:01]} 18... Kb8 {[%clk 0:25:39]} 19. Nc5 {[%clk
0:46:11]} 19... e6 {[%clk 0:19:15]} 20. f5 {[%clk 0:40:47]} 20... exf5 {[%clk
0:15:40]} 21. Bf4+ {[%clk 0:41:03]} 21... Kc8 {[%clk 0:13:47]} 22. exf5 {[%clk
0:41:00]} 22... h5 {[%clk 0:12:54]} 23. Bf3 {[%clk 0:40:26]} 23... g5 {[%clk
0:13:08]} 24. Bg3 {[%clk 0:34:26]} 24... g4 {[%clk 0:13:17]} 25. Nb5 {[%clk
0:32:01]} 25... Nxc5 {[%clk 0:10:33]} 26. Nxa7+ {[%clk 0:32:24]} 26... Kd7
{[%clk 0:10:31]} 27. dxc5+ {[%clk 0:32:52]} 27... Nd5 {[%clk 0:10:51]} 28. Bxd5
{[%clk 0:33:16]} 28... Bxd5 {[%clk 0:11:10]} 29. Nb5 {[%clk 0:33:40]} 29... Re2
{[%clk 0:08:42]} 30. Rf2 {[%clk 0:32:57]} 30... Rde8 {[%clk 0:09:11]} 31. Nc3
{[%clk 0:31:21]} 31... Re1+ {[%clk 0:09:36]} 32. Rf1 {[%clk 0:31:29]} 32... Rxd1
33. Rxd1 {[%clk 0:31:49]} 33... Bf8 {[%clk 0:05:00]} 34. b4 {[%clk 0:28:49]}
34... Re3 {[%clk 0:00:51]} 35. Nxd5 {[%clk 0:28:00]} 35... cxd5 {[%clk 0:01:19]}
36. b5 {[%clk 0:27:38]} 36... Rc3 {[%clk 0:01:20]} 37. Rxd5+ {[%clk 0:25:46]}
37... Ke8 {[%clk 0:01:22]} 38. Bd6 {[%clk 0:25:35]} 38... Bxd6 {[%clk 0:01:51]}
39. Rxd6 {[%clk 0:25:35]} 39... Rxc5 {[%clk 0:01:43]} 40. Rb6 {[%clk 0:54:36]}
40... Rc1+ {[%clk 0:31:10]} 41. Kf2 {[%clk 0:55:02]} 41... h4 {[%clk 0:30:24]}
42. Rxb7 {[%clk 0:54:45]} 42... Rc2+ {[%clk 0:30:40]} 43. Ke3 {[%clk 0:55:09]}
43... Rxa2 {[%clk 0:30:57]} 44. b6 {[%clk 0:51:45]} 44... Rxg2 {[%clk 0:27:29]}
45. Rh7 {[%clk 0:51:51]} 45... Kd8 {[%clk 0:24:58]} 46. Rh8+ {[%clk 0:51:58]}
46... Kd7 {[%clk 0:25:12]} 47. b7 {[%clk 0:52:23]} 1-0

[Variant "Standard"]
[Site "Europe Echecs"]

[Event "Sunway Sitges Chess Festival"]
[Date "2024.12.21"]
[White "Koenig, Christian"]
[Black "Song, Edward"]
[WhiteElo "2008"]
[BlackElo "2363"]
[Round "1.33"]
[Result "0-1"]
[TimeControl "40/5400+30:1800+30"]

1. d4 Nf6 2. Nc3 d5 3. Bf4 c5 4. e3 cxd4 5. exd4 a6 6. Nf3 Nc6 7. Ne5 Bd7 8. g3
e6 9. Nxd7 Qxd7 10. Bg2 Bd6 11. Bxd6 Qxd6 12. O-O Qb4 13. Ne2 Qxb2 14. Rb1 Qxa2
15. Rxb7 O-O 16. Qd3 Rab8 17. Rfb1 Qxb1+ 18. Rxb1 Rxb1+ 19. Bf1 Nb4 20. Qa3 Ne4
21. Nc3 Nxc2 22. Qa2 Nxc3 23. Qxc2 Rc8 24. Kg2 Rb6 25. Bd3 h6 26. h4 a5 27. g4
Rbb8 28. g5 hxg5 29. hxg5 Ne4 30. Qa4 Nxg5 31. Qxa5 Nh7 0-1

[Variant "Standard"]
[Site "Europe Echecs"]

[Event "Sunway Sitges Chess Festival"]
[Date "2024.12.21"]
[White "kiladze, Luka"]
[Black "Rindhiya V"]
[WhiteElo "2359"]
[BlackElo "2007"]
[Round "1.34"]
[Result "1-0"]
[TimeControl "40/5400+30:1800+30"]

1. d4 {[%clk 1:30:46]} 1... Nf6 {[%clk 1:30:57]} 2. Nc3 {[%clk 1:31:10]} 2... d5
{[%clk 1:31:10]} 3. Bf4 {[%clk 1:30:19]} 3... c5 {[%clk 1:30:29]} 4. e3 {[%clk
1:20:28]} 4... e6 {[%clk 1:30:19]} 5. Nb5 {[%clk 1:16:08]} 5... Na6 {[%clk
1:17:25]} 6. c3 {[%clk 1:15:50]} 6... Be7 {[%clk 1:12:11]} 7. Be2 {[%clk
1:14:30]} 7... O-O {[%clk 1:07:58]} 8. a4 {[%clk 1:11:11]} 8... Bd7 {[%clk
1:05:27]} 9. h4 {[%clk 1:00:13]} 9... Qb6 {[%clk 1:04:04]} 10. Nf3 {[%clk
1:21:20]} 10... c4 {[%clk 1:02:48]} 11. b3 {[%clk 1:19:50]} 11... Bxb5 {[%clk
0:49:47]} 12. axb5 {[%clk 1:21:41]} 12... Qxb5 {[%clk 0:49:34]} 13. bxc4 {[%clk
1:14:31]} 13... dxc4 {[%clk 0:49:31]} 14. Qb1 {[%clk 0:46:44]} 14... Qxb1+
{[%clk 0:20:06]} 15. Rxb1 {[%clk 0:46:15]} 15... b6 {[%clk 0:20:13]} 16. Bxc4
{[%clk 1:12:57]} 16... Nb8 {[%clk 0:04:17]} 17. Bd3 {[%clk 0:56:29]} 17... Nc6
{[%clk 0:-2:-2]} 18. e4 {[%clk 0:54:38]} 18... Na5 {[%clk 0:-7:-37]} 19. Ke2
{[%clk 0:47:34]} 19... Rfc8 {[%clk 0:09:54]} 20. Rhc1 {[%clk 0:43:22]} 20... Nc4
{[%clk 0:09:37]} 21. Ne5 {[%clk 0:38:01]} 21... Nxe5 {[%clk 0:04:16]} 22. Bxe5
{[%clk 0:43:29]} 22... a5 {[%clk 0:-6:-8]} 23. Rxb6 {[%clk 0:36:42]} 23... Nd7
{[%clk 0:00:32]} 24. Rb7 {[%clk 0:37:06]} 24... Nxe5 {[%clk 0:00:38]} 25. Rxe7
{[%clk 0:35:25]} 25... Ng6 {[%clk 0:00:32]} 26. Rb7 {[%clk 0:34:37]} 26... Nf4+
{[%clk 0:00:36]} 27. Kd2 {[%clk 0:35:55]} 27... Nxg2 28. c4 {[%clk 0:33:10]}
28... a4 {[%clk 0:01:08]} 29. Ra1 {[%clk 0:32:27]} 29... Nxh4 {[%clk 0:-2:-3]}
30. Rb4 {[%clk 0:32:06]} 30... a3 {[%clk 0:00:33]} 31. Rb3 {[%clk 0:30:34]}
31... a2 {[%clk 0:00:43]} 32. Rb2 {[%clk 0:29:55]} 32... Rab8 {[%clk 0:00:31]}
33. Raxa2 {[%clk 0:30:20]} 33... Rxb2+ {[%clk 0:00:41]} 34. Rxb2 {[%clk
0:30:43]} 34... Kf8 {[%clk 0:-1:-8]} 35. d5 {[%clk 0:28:56]} 35... exd5 {[%clk
0:00:48]} 36. exd5 {[%clk 0:29:20]} 36... Nf3+ {[%clk 0:-1:-7]} 37. Ke3 {[%clk
0:28:32]} 37... Ne5 {[%clk 0:-1:-27]} 38. Kd4 {[%clk 0:27:56]} 38... f6 {[%clk
0:-3:-58]} 39. Be2 {[%clk 0:27:12]} 39... Rc7 {[%clk 0:-4:-18]} 1-0

[Variant "Standard"]
[Site "Europe Echecs"]

[Event "Sunway Sitges Chess Festival"]
[Date "2024.12.21"]
[White "Arkell, Keith C"]
[Black "Yu, Zechen"]
[WhiteElo "2355"]
[BlackElo "2003"]
[Round "1.36"]
[Result "1-0"]
[TimeControl "40/5400+30:1800+30"]

1. Nf3 d5 {[%clk 1:30:53]} 2. g3 {[%clk 1:31:14]} 2... Nf6 {[%clk 1:30:47]} 3.
Bg2 {[%clk 1:31:40]} 3... e6 {[%clk 1:31:39]} 4. c4 {[%clk 1:32:06]} 4... Be7
{[%clk 1:31:33]} 5. O-O {[%clk 1:32:31]} 5... O-O {[%clk 1:31:24]} 6. cxd5
{[%clk 1:32:23]} 6... exd5 {[%clk 1:32:56]} 7. b3 {[%clk 1:10:43]} 7... c5
{[%clk 1:32:15]} 8. d4 {[%clk 1:09:09]} 8... Nc6 {[%clk 1:31:44]} 9. Bb2 {[%clk
1:06:04]} 9... Be6 {[%clk 1:31:30]} 10. Nc3 {[%clk 0:54:29]} 10... Rc8 {[%clk
1:31:11]} 11. Rc1 {[%clk 0:43:03]} 11... Nd7 {[%clk 0:37:52]} 12. dxc5 {[%clk
1:30:15]} 12... Nxc5 {[%clk 0:37:53]} 13. Nd4 {[%clk 1:26:38]} 13... Qd7 {[%clk
0:35:19]} 14. Nxe6 {[%clk 1:26:32]} 14... fxe6 {[%clk 0:33:44]} 15. e3 {[%clk
1:14:39]} 15... Nb4 {[%clk 0:15:25]} 16. Ne2 {[%clk 1:08:38]} 16... Nbd3 {[%clk
0:14:32]} 17. Rc2 {[%clk 1:07:35]} 17... Nxb2 {[%clk 0:16:14]} 18. Rxb2 {[%clk
1:07:29]} 18... Bf6 {[%clk 0:14:46]} 19. Rc2 {[%clk 0:59:42]} 19... Rfd8 20. Qd2
{[%clk 0:54:08]} 20... Na6 {[%clk 0:04:54]} 21. Rxc8 {[%clk 0:52:49]} 21... Rxc8
{[%clk 0:04:02]} 22. Nf4 {[%clk 0:51:36]} 22... Bc3 {[%clk 0:03:39]} 23. Qe2
{[%clk 0:49:58]} 23... Be5 {[%clk 0:02:23]} 24. Nd3 {[%clk 0:49:22]} 24... Bd6
{[%clk 0:01:56]} 25. Qg4 {[%clk 0:48:34]} 25... Nc5 {[%clk 0:00:08]} 26. Bh3
{[%clk 0:55:19]} 26... Re8 {[%clk 0:-2:-55]} 27. Qd4 {[%clk 0:51:39]} 27... Nxd3
{[%clk 0:01:27]} 28. Qxd3 {[%clk 0:55:43]} 28... Qc6 {[%clk 0:01:06]} 29. Rd1
{[%clk 0:55:01]} 29... Be5 {[%clk 0:00:29]} 30. Qe2 {[%clk 0:54:40]} 30... Bf6
{[%clk 0:00:-13]} 31. Bg2 {[%clk 0:55:38]} 31... Kh8 {[%clk 0:00:37]} 32. h4
{[%clk 0:55:33]} 32... Qc3 {[%clk 0:-1:-13]} 33. e4 {[%clk 0:54:14]} 33... dxe4
{[%clk 0:00:56]} 34. Qxe4 {[%clk 0:54:38]} 34... Qc7 {[%clk 0:00:-58]} 35. Qa4
{[%clk 0:53:17]} 35... Rd8 {[%clk 0:00:34]} 36. Rxd8+ {[%clk 0:53:19]} 36...
Qxd8 {[%clk 0:01:00]} 37. Qxa7 {[%clk 0:52:32]} 37... b6 {[%clk 0:00:17]} 38.
Bf3 {[%clk 0:50:19]} 38... Bd4 {[%clk 0:00:-36]} 39. Qf7 {[%clk 0:51:06]} 39...
e5 {[%clk 0:-1:-49]} 40. h5 {[%clk 1:20:03]} 40... Qg8 {[%clk 0:-9:-16]} 41. Bd5
{[%clk 1:19:32]} 41... Qxf7 {[%clk 0:26:55]} 42. Bxf7 {[%clk 1:05:05]} 42... e4
{[%clk 0:12:21]} 43. Kf1 {[%clk 1:13:10]} 43... g6 44. hxg6 {[%clk 1:12:49]}
44... Kg7 {[%clk 0:11:54]} 45. Bd5 {[%clk 1:12:53]} 45... hxg6 {[%clk 0:11:49]}
46. Bxe4 {[%clk 1:12:49]} 46... g5 {[%clk 0:07:38]} 47. Ke2 {[%clk 1:10:57]}
47... Be5 {[%clk 0:07:31]} 48. Ke3 {[%clk 1:10:25]} 48... Kf6 {[%clk 0:10:46]}
49. f4 {[%clk 1:10:05]} 49... Bd6 {[%clk 0:10:22]} 50. Bc6 {[%clk 1:07:19]}
50... gxf4+ {[%clk 0:08:26]} 51. gxf4 {[%clk 1:06:09]} 51... Ke6 {[%clk
0:08:14]} 52. Ke4 {[%clk 1:06:02]} 52... Ba3 {[%clk 0:07:51]} 53. Bb5 {[%clk
1:05:24]} 53... Bb2 {[%clk 0:07:37]} 54. Bd3 {[%clk 1:04:40]} 54... Bc3 {[%clk
0:06:45]} 55. Bc2 {[%clk 1:04:27]} 55... Kd6 {[%clk 0:05:34]} 56. Kd3 {[%clk
1:04:10]} 56... Bg7 {[%clk 0:05:19]} 57. Kc4 {[%clk 1:03:59]} 57... Kc6 {[%clk
0:04:55]} 58. Be4+ {[%clk 1:04:01]} 58... Kd6 {[%clk 0:04:46]} 59. Kb5 {[%clk
1:02:55]} 59... Kc7 {[%clk 0:04:34]} 60. a4 {[%clk 1:03:38]} 60... Bh6 {[%clk
0:03:45]} 61. f5 {[%clk 1:03:33]} 61... Bg7 {[%clk 0:03:40]} 62. b4 {[%clk
1:03:25]} 62... Be5 {[%clk 0:03:38]} 63. a5 {[%clk 1:03:17]} 63... bxa5 {[%clk
0:03:35]} 64. bxa5 {[%clk 1:03:13]} 64... Bc3 {[%clk 0:03:08]} 65. a6 {[%clk
1:02:59]} 65... Bd4 {[%clk 0:02:50]} 66. f6 {[%clk 1:01:17]} 66... Kb8 {[%clk
0:02:48]} 67. f7 {[%clk 1:02:42]} 67... Bg7 {[%clk 0:01:14]} 68. Kb6 {[%clk
1:02:24]} 68... Bd4+ {[%clk 0:01:08]} 69. Kc6 {[%clk 1:02:22]} 69... Bg7 {[%clk
0:01:02]} 70. Kd7 {[%clk 1:02:17]} 70... Ka7 {[%clk 0:00:55]} 71. Bd3 {[%clk
1:02:12]} 71... Bf8 {[%clk 0:00:47]} 72. Ke8 {[%clk 1:01:55]} 1-0

[Variant "Standard"]
[Site "Europe Echecs"]

[Event "Sunway Sitges Chess Festival"]
[Date "2024.12.21"]
[White "Donate Villalba, Juan Francisco"]
[Black "Alexiadis, Hristos"]
[WhiteElo "1997"]
[BlackElo "2341"]
[Round "1.39"]
[Result "0-1"]
[TimeControl "40/5400+30:1800+30"]

1. e4 {[%clk 1:19:52]} 1... d5 {[%clk 1:29:52]} 2. exd5 {[%clk 1:19:39]} 2...
Nf6 {[%clk 1:30:15]} 3. d4 {[%clk 1:19:07]} 3... Nxd5 {[%clk 1:30:37]} 4. c4
{[%clk 1:18:54]} 4... Nb6 {[%clk 1:30:59]} 5. Nc3 {[%clk 1:16:56]} 5... e5
{[%clk 1:27:04]} 6. Be3 {[%clk 1:12:16]} 6... exd4 {[%clk 1:24:43]} 7. Bxd4
{[%clk 1:09:49]} 7... Qe7+ {[%clk 1:06:42]} 8. Qe2 {[%clk 0:58:41]} 8... Be6
{[%clk 1:06:56]} 9. b3 {[%clk 0:55:55]} 9... Nc6 {[%clk 1:06:36]} 10. Be3 {[%clk
0:56:12]} 10... Qf6 {[%clk 1:06:13]} 11. Bd2 {[%clk 0:43:15]} 11... Bb4 {[%clk
1:01:11]} 12. Qf3 {[%clk 0:31:16]} 12... Qe7 {[%clk 0:51:52]} 13. Nge2 {[%clk
0:26:55]} 13... O-O-O {[%clk 0:50:47]} 14. O-O-O {[%clk 0:18:44]} 14... Ne5
{[%clk 0:51:05]} 15. Qg3 {[%clk 0:15:40]} 15... Bf5 {[%clk 0:51:03]} 16. Kb2
{[%clk 0:15:22]} 16... Nexc4+ {[%clk 0:51:08]} 17. bxc4 {[%clk 0:14:45]} 17...
Nxc4+ {[%clk 0:51:14]} 18. Ka1 {[%clk 0:14:50]} 18... Nxd2 {[%clk 0:51:22]} 19.
Rc1 {[%clk 0:09:42]} 19... Bd6 {[%clk 0:49:12]} 20. f4 {[%clk 0:07:38]} 20...
Ba3 {[%clk 0:46:20]} 0-1

[Variant "Standard"]
[Site "Europe Echecs"]

[Event "Sunway Sitges Chess Festival"]
[Date "2024.12.21"]
[White "Machado Hernandez, Junior"]
[Black "Amith Boddapati"]
[WhiteElo "2064"]
[BlackElo "1611"]
[Round "1.42"]
[Result "1-0"]
[TimeControl "40/5400+30:1800+30"]

1. e4 c5 {[%clk 1:30:55]} 2. Nf3 {[%clk 1:30:09]} 2... a6 {[%clk 1:31:24]} 3.
Nc3 {[%clk 1:29:51]} 3... d6 {[%clk 1:31:30]} 4. d4 {[%clk 1:29:55]} 4... cxd4
{[%clk 1:31:51]} 5. Nxd4 {[%clk 1:30:12]} 5... Nf6 {[%clk 1:28:13]} 6. h3 {[%clk
1:27:52]} 6... e5 {[%clk 1:24:17]} 7. Nf3 {[%clk 1:26:43]} 7... Qc7 {[%clk
1:16:20]} 8. Bg5 {[%clk 1:11:26]} 8... Be7 {[%clk 1:00:01]} 9. Bxf6 {[%clk
0:50:50]} 9... Bxf6 {[%clk 1:06:52]} 10. Nd5 {[%clk 1:10:01]} 10... Qd8 {[%clk
1:04:25]} 11. Bc4 {[%clk 1:09:40]} 11... Be6 {[%clk 1:01:00]} 12. Bb3 {[%clk
1:08:56]} 12... Be7 {[%clk 0:48:53]} 13. Qd2 {[%clk 1:08:05]} 13... Nc6 {[%clk
0:38:41]} 14. Rd1 {[%clk 0:57:11]} 14... Bxd5 {[%clk 0:43:53]} 15. Bxd5 {[%clk
0:53:44]} 15... O-O {[%clk 0:40:37]} 16. O-O {[%clk 0:51:24]} 16... Qb6 {[%clk
0:38:31]} 17. c3 {[%clk 0:46:49]} 17... h6 {[%clk 0:34:40]} 18. Rfe1 {[%clk
0:56:43]} 18... Rac8 {[%clk 0:32:45]} 19. Nh2 {[%clk 0:52:16]} 19... Bg5 {[%clk
0:29:31]} 20. Qe2 {[%clk 0:52:11]} 20... Ne7 {[%clk 0:26:29]} 21. Bb3 {[%clk
0:52:18]} 21... Ng6 {[%clk 0:26:06]} 22. g3 {[%clk 0:51:27]} 22... Qc7 {[%clk
0:22:33]} 23. h4 {[%clk 0:41:39]} 23... Bf6 {[%clk 0:21:08]} 24. Ng4 {[%clk
0:40:50]} 24... Qd8 {[%clk 0:19:08]} 25. Ne3 {[%clk 0:39:59]} 25... Ne7 {[%clk
0:18:40]} 26. Rd3 {[%clk 0:38:39]} 26... b5 {[%clk 0:16:50]} 27. Red1 {[%clk
0:38:41]} 27... Rc6 {[%clk 0:16:02]} 28. Qd2 {[%clk 0:37:57]} 28... Nc8 {[%clk
0:15:36]} 29. Nf5 {[%clk 0:38:13]} 29... Be7 {[%clk 0:15:32]} 30. Qe2 {[%clk
0:37:38]} 30... Kh7 {[%clk 0:13:40]} 31. Qg4 {[%clk 0:31:28]} 31... g6 {[%clk
0:13:02]} 32. Ne3 {[%clk 0:30:09]} 32... Nb6 {[%clk 0:12:45]} 33. h5 {[%clk
0:25:52]} 33... Nc4 {[%clk 0:11:41]} 34. Bxc4 {[%clk 0:26:13]} 34... bxc4 {[%clk
0:11:58]} 35. R3d2 {[%clk 0:26:29]} 35... Qc8 {[%clk 0:11:57]} 1-0

[Variant "Standard"]
[Site "Europe Echecs"]

[Event "Sunway Sitges Chess Festival"]
[Date "2024.12.21"]
[White "Sijpkens, Michiel"]
[Black "Schulman, Julia"]
[WhiteElo "2120"]
[BlackElo "1852"]
[Round "1.43"]
[Result "1-0"]
[TimeControl "40/5400+30:1800+30"]

1. d4 {[%clk 1:30:44]} 1... Nf6 {[%clk 1:30:53]} 2. c4 {[%clk 1:30:57]} 2... e6
{[%clk 1:31:13]} 3. Nc3 {[%clk 1:30:59]} 3... Bb4 {[%clk 1:31:26]} 4. Qc2 {[%clk
1:31:03]} 4... O-O {[%clk 1:31:33]} 5. a3 {[%clk 1:31:24]} 5... Bxc3+ {[%clk
1:31:44]} 6. Qxc3 {[%clk 1:31:48]} 6... d5 {[%clk 1:31:21]} 7. Bg5 {[%clk
1:31:43]} 7... dxc4 {[%clk 1:30:16]} 8. Qxc4 {[%clk 1:31:44]} 8... b6 {[%clk
1:28:35]} 9. Rd1 {[%clk 1:30:57]} 9... Ba6 {[%clk 1:23:44]} 10. Qa4 {[%clk
1:31:06]} 10... Qc8 {[%clk 1:15:42]} 11. Bxf6 {[%clk 1:26:31]} 11... gxf6 {[%clk
1:15:34]} 12. Nf3 {[%clk 1:25:33]} 12... c5 {[%clk 0:59:52]} 13. g3 {[%clk
1:07:50]} 13... cxd4 {[%clk 0:47:36]} 14. Qxd4 {[%clk 1:03:11]} 14... e5 {[%clk
0:45:50]} 15. Qh4 {[%clk 0:53:40]} 15... Qf5 {[%clk 0:32:25]} 16. Bh3 {[%clk
0:52:37]} 16... Qg6 {[%clk 0:29:35]} 17. Bg2 {[%clk 0:34:31]} 17... Nc6 {[%clk
0:27:49]} 18. Qa4 {[%clk 0:27:56]} 18... Na5 {[%clk 0:05:29]} 19. Nh4 {[%clk
0:26:36]} 19... Qg5 {[%clk 0:05:56]} 20. Bxa8 {[%clk 0:22:04]} 20... Rxa8 {[%clk
0:06:21]} 21. O-O {[%clk 0:19:43]} 21... Bxe2 {[%clk 0:06:16]} 22. Qe4 {[%clk
0:19:53]} 22... Bxf1 {[%clk 0:04:30]} 23. Qxa8+ {[%clk 0:20:16]} 23... Kg7
{[%clk 0:04:58]} 1-0

[Variant "Standard"]
[Site "Europe Echecs"]